[Event "*** SCC Grand Prix: Titled Tuesday Blitz"]
[Site "Chess.com"]
[Date "2020.07.07"]
[Round "3"]
[White "SaqoChess_Twitch"]
[Black "vpsetter"]
[Result "1/2-1/2"]
[WhiteElo "2419"]
[BlackElo "2615"]
[TimeControl "180+1"]
[EndTime "10:31:26 PDT"]
[Termination "Game drawn - insufficient material"]

1. d4 {[%clk 0:03:00.9]} 1... Nf6 {[%clk 0:02:59.2]} 2. c4 {[%clk 0:03:01.4]}
2... e6 {[%clk 0:02:59.9]} 3. Nc3 {[%clk 0:03:01.9]} 3... Bb4 {[%clk 0:03:00.1]}
4. a3 {[%clk 0:03:02.5]} 4... Bxc3+ {[%clk 0:02:59.6]} 5. bxc3 {[%clk
0:03:03.4]} 5... d6 {[%clk 0:02:48.4]} 6. e3 {[%clk 0:03:03.7]} 6... O-O {[%clk
0:02:45.9]} 7. Bd3 {[%clk 0:03:04.2]} 7... e5 {[%clk 0:02:44.1]} 8. Ne2 {[%clk
0:03:04.6]} 8... Re8 {[%clk 0:02:40.9]} 9. Ng3 {[%clk 0:03:04.5]} 9... c5 {[%clk
0:02:30.7]} 10. O-O {[%clk 0:03:02.5]} 10... Nc6 {[%clk 0:02:30.3]} 11. d5
{[%clk 0:03:01.7]} 11... Na5 {[%clk 0:02:30]} 12. f4 {[%clk 0:03:02]} 12... e4
{[%clk 0:02:06]} 13. Bb1 {[%clk 0:02:53.8]} 13... Nxc4 {[%clk 0:02:02.1]} 14.
Nh5 {[%clk 0:02:41.1]} 14... Nxh5 {[%clk 0:01:49.5]} 15. Qxh5 {[%clk 0:02:42]}
15... Qf6 {[%clk 0:01:47.5]} 16. Ra2 {[%clk 0:02:19.4]} 16... Qxc3 {[%clk
0:00:51.6]} 17. Rc2 {[%clk 0:02:13.4]} 17... Qb3 {[%clk 0:00:49.5]} 18. f5
{[%clk 0:01:57.1]} 18... Re5 {[%clk 0:00:26.7]} 19. Qg5 {[%clk 0:01:41.9]} 19...
f6 {[%clk 0:00:23.2]} 20. Qh5 {[%clk 0:01:40.9]} 20... Nxe3 {[%clk 0:00:13.2]}
21. Bxe3 {[%clk 0:01:26.2]} 21... Qxe3+ {[%clk 0:00:12.9]} 22. Rcf2 {[%clk
0:01:27.1]} 22... Bd7 {[%clk 0:00:10.6]} 23. h4 {[%clk 0:01:21.7]} 23... Rxf5
{[%clk 0:00:08.1]} 24. Qd1 {[%clk 0:01:17.2]} 24... Rxf2 {[%clk 0:00:08]} 25.
Rxf2 {[%clk 0:01:18.1]} 25... Qd4 {[%clk 0:00:08.3]} 26. Qe1 {[%clk 0:01:17.8]}
26... Re8 {[%clk 0:00:06.7]} 27. g3 {[%clk 0:01:14.9]} 27... Qxd5 {[%clk
0:00:06.6]} 28. Ba2 {[%clk 0:01:13.6]} 28... c4 {[%clk 0:00:07]} 29. Rd2 {[%clk
0:01:13.9]} 29... Qc5+ {[%clk 0:00:07.2]} 30. Kh2 {[%clk 0:01:14.5]} 30... e3
{[%clk 0:00:05.6]} 31. Rc2 {[%clk 0:01:13.5]} 31... b5 {[%clk 0:00:05.9]} 32.
Qe2 {[%clk 0:01:13.7]} 32... d5 {[%clk 0:00:06]} 33. a4 {[%clk 0:01:13.7]} 33...
a6 {[%clk 0:00:06.2]} 34. axb5 {[%clk 0:01:12.8]} 34... axb5 {[%clk 0:00:07.1]}
35. h5 {[%clk 0:01:11]} 35... d4 {[%clk 0:00:06.7]} 36. h6 {[%clk 0:01:09]}
36... Qf5 {[%clk 0:00:06.2]} 37. Rxc4 {[%clk 0:01:06.4]} 37... bxc4 {[%clk
0:00:05.9]} 38. Qxc4+ {[%clk 0:01:07.3]} 38... Be6 {[%clk 0:00:06.2]} 39. Qc7
{[%clk 0:01:06.2]} 39... Qh3+ {[%clk 0:00:04.4]} 40. Kg1 {[%clk 0:01:05.9]}
40... Qxh6 {[%clk 0:00:04.2]} 41. Qd7 {[%clk 0:00:59.9]} 41... Qg6 {[%clk
0:00:04.2]} 42. Bxe6+ {[%clk 0:00:58.5]} 42... Rxe6 {[%clk 0:00:03.2]} 43. Qxe6+
{[%clk 0:00:57.5]} 43... Qf7 {[%clk 0:00:03.5]} 44. Qc8+ {[%clk 0:00:58.1]}
44... Qf8 {[%clk 0:00:04]} 45. Qd7 {[%clk 0:00:58.8]} 45... e2 {[%clk
0:00:03.5]} 46. Kf2 {[%clk 0:00:58.4]} 46... Kh8 {[%clk 0:00:03.6]} 47. Qxd4
{[%clk 0:00:56.2]} 47... Qe8 {[%clk 0:00:03.7]} 48. Ke1 {[%clk 0:00:55.6]} 48...
h5 {[%clk 0:00:04.2]} 49. Qd5 {[%clk 0:00:54]} 49... Qe5 {[%clk 0:00:03.9]} 50.
Qa8+ {[%clk 0:00:52.6]} 50... Kh7 {[%clk 0:00:04.4]} 51. Qf3 {[%clk 0:00:53.1]}
51... Kh6 {[%clk 0:00:04.5]} 52. Qb3 {[%clk 0:00:51.1]} 52... g5 {[%clk
0:00:04.2]} 53. Qf3 {[%clk 0:00:48.9]} 53... g4 {[%clk 0:00:04.1]} 54. Qd3
{[%clk 0:00:48]} 54... Kg5 {[%clk 0:00:04.2]} 55. Qd2+ {[%clk 0:00:47.8]} 55...
Kg6 {[%clk 0:00:04.7]} 56. Qd3+ {[%clk 0:00:48.3]} 56... Kh6 {[%clk 0:00:05]}
57. Qd2+ {[%clk 0:00:48]} 57... Kg7 {[%clk 0:00:05.3]} 58. Qd7+ {[%clk
0:00:47.9]} 58... Kg6 {[%clk 0:00:05.8]} 59. Qd3+ {[%clk 0:00:47.7]} 59... f5
{[%clk 0:00:06.2]} 60. Qa6+ {[%clk 0:00:46.9]} 60... Kg5 {[%clk 0:00:06.3]} 61.
Qd3 {[%clk 0:00:42]} 61... h4 {[%clk 0:00:06.3]} 62. Qd8+ {[%clk 0:00:42]} 62...
Kg6 {[%clk 0:00:05.1]} 63. gxh4 {[%clk 0:00:39.9]} 63... f4 {[%clk 0:00:04.1]}
64. Qg8+ {[%clk 0:00:38.1]} 64... Kf5 {[%clk 0:00:02.8]} 65. Qh7+ {[%clk
0:00:38.2]} 65... Ke6 {[%clk 0:00:02.3]} 66. Qg6+ {[%clk 0:00:38.7]} 66... Kd5
{[%clk 0:00:02.6]} 67. Qxg4 {[%clk 0:00:37.6]} 67... Qc3+ {[%clk 0:00:03.1]} 68.
Kxe2 {[%clk 0:00:36.9]} 68... Qe3+ {[%clk 0:00:03.5]} 69. Kf1 {[%clk 0:00:37.3]}
69... Qc1+ {[%clk 0:00:03.5]} 70. Kg2 {[%clk 0:00:36.9]} 70... Qd2+ {[%clk
0:00:03.6]} 71. Kf1 {[%clk 0:00:34.5]} 71... Qd3+ {[%clk 0:00:03.4]} 72. Kg2
{[%clk 0:00:34.3]} 72... Qd2+ {[%clk 0:00:03.6]} 73. Kg1 {[%clk 0:00:34.5]}
73... Qe3+ {[%clk 0:00:03.8]} 74. Kh2 {[%clk 0:00:34.8]} 74... Qf2+ {[%clk
0:00:03.7]} 75. Qg2+ {[%clk 0:00:34.1]} 75... Qxg2+ {[%clk 0:00:04.2]} 76. Kxg2
{[%clk 0:00:35]} 76... Ke4 {[%clk 0:00:04.7]} 77. Kf2 {[%clk 0:00:33.6]} 77...
Kf5 {[%clk 0:00:04.6]} 78. Kf3 {[%clk 0:00:34.4]} 78... Kg6 {[%clk 0:00:05.1]}
79. Kxf4 {[%clk 0:00:35.3]} 79... Kh5 {[%clk 0:00:05.5]} 80. Kg3 {[%clk
0:00:36.2]} 80... Kh6 {[%clk 0:00:06.4]} 81. Kg4 {[%clk 0:00:37.1]} 81... Kh7
{[%clk 0:00:07.3]} 82. h5 {[%clk 0:00:37.7]} 82... Kh6 {[%clk 0:00:07.7]} 83.
Kh4 {[%clk 0:00:38.1]} 83... Kh7 {[%clk 0:00:08.6]} 84. Kg5 {[%clk 0:00:39]}
84... Kh8 {[%clk 0:00:09.5]} 85. h6 {[%clk 0:00:39.9]} 85... Kh7 {[%clk
0:00:10.1]} 86. Kh5 {[%clk 0:00:40.3]} 86... Kh8 {[%clk 0:00:11]} 87. Kg6 {[%clk
0:00:41.2]} 87... Kg8 {[%clk 0:00:11.5]} 88. h7+ {[%clk 0:00:42.1]} 88... Kh8
{[%clk 0:00:12.4]} 89. Kf5 {[%clk 0:00:42.9]} 89... Kxh7 {[%clk 0:00:12.6]}
1/2-1/2

[Event "*** SCC Grand Prix: Titled Tuesday Blitz"]
[Site "Chess.com"]
[Date "2020.07.07"]
[Round "3"]
[White "KobyKalavannan"]
[Black "MrChampion_Coach"]
[Result "1-0"]
[WhiteElo "2632"]
[BlackElo "2411"]
[TimeControl "180+1"]
[EndTime "10:31:30 PDT"]
[Termination "KobyKalavannan won by checkmate"]

1. d4 {[%clk 0:03:00.9]} 1... c5 {[%clk 0:02:13.7]} 2. Nf3 {[%clk 0:02:59.8]}
2... cxd4 {[%clk 0:02:13.1]} 3. Nxd4 {[%clk 0:03:00.7]} 3... e5 {[%clk
0:02:12.2]} 4. Nf3 {[%clk 0:02:59.7]} 4... Nc6 {[%clk 0:02:12.1]} 5. e4 {[%clk
0:02:59.7]} 5... Nf6 {[%clk 0:02:12.3]} 6. Bd3 {[%clk 0:02:55.9]} 6... Bb4+
{[%clk 0:02:09]} 7. c3 {[%clk 0:02:56]} 7... Bc5 {[%clk 0:02:08.6]} 8. Nbd2
{[%clk 0:02:53.2]} 8... h6 {[%clk 0:02:08.9]} 9. Nc4 {[%clk 0:02:53.2]} 9... O-O
{[%clk 0:02:03]} 10. O-O {[%clk 0:02:52.4]} 10... d5 {[%clk 0:02:00.2]} 11. exd5
{[%clk 0:02:46]} 11... Qxd5 {[%clk 0:02:01.1]} 12. b4 {[%clk 0:02:18.4]} 12...
e4 {[%clk 0:01:53.1]} 13. bxc5 {[%clk 0:02:17.7]} 13... exd3 {[%clk 0:01:45.3]}
14. Nd6 {[%clk 0:02:03.4]} 14... Rd8 {[%clk 0:01:29.4]} 15. Be3 {[%clk 0:02:02]}
15... Bg4 {[%clk 0:01:19.6]} 16. h3 {[%clk 0:01:39.6]} 16... Bxf3 {[%clk
0:01:16.7]} 17. Qxf3 {[%clk 0:01:40.5]} 17... Qxf3 {[%clk 0:01:14.3]} 18. gxf3
{[%clk 0:01:41.4]} 18... b6 {[%clk 0:01:06.8]} 19. Rfd1 {[%clk 0:01:37.3]} 19...
bxc5 {[%clk 0:01:03.2]} 20. Bxc5 {[%clk 0:01:38.2]} 20... Ne5 {[%clk 0:00:58.1]}
21. f4 {[%clk 0:01:36.7]} 21... Nf3+ {[%clk 0:00:57.3]} 22. Kg2 {[%clk
0:01:36.6]} 22... Nh4+ {[%clk 0:00:57.3]} 23. Kg3 {[%clk 0:01:35.9]} 23... g5
{[%clk 0:00:50.9]} 24. fxg5 {[%clk 0:01:24.8]} 24... hxg5 {[%clk 0:00:51.8]} 25.
Rxd3 {[%clk 0:00:56.6]} 25... Ne4+ {[%clk 0:00:51.1]} 26. Nxe4 {[%clk
0:00:57.1]} 26... Rxd3+ {[%clk 0:00:50.4]} 27. Kg4 {[%clk 0:00:58]} 27... f5+
{[%clk 0:00:48.1]} 28. Kxg5 {[%clk 0:00:58.5]} 28... Nf3+ {[%clk 0:00:48.5]} 29.
Kxf5 {[%clk 0:00:58.5]} 29... Re8 {[%clk 0:00:33.6]} 30. Nf6+ {[%clk 0:00:58.3]}
30... Kf7 {[%clk 0:00:31.5]} 31. Nxe8 {[%clk 0:00:59.2]} 31... Rd5+ {[%clk
0:00:31]} 32. Ke4 {[%clk 0:00:59.5]} 32... Rxc5 {[%clk 0:00:31.4]} 33. Nd6+
{[%clk 0:00:47.8]} 33... Ke6 {[%clk 0:00:30.9]} 34. Kxf3 {[%clk 0:00:44.4]}
34... Rxc3+ {[%clk 0:00:30.6]} 35. Kg4 {[%clk 0:00:44.1]} 35... Kxd6 {[%clk
0:00:31.5]} 36. f4 {[%clk 0:00:42.5]} 36... Ke6 {[%clk 0:00:31]} 37. Re1+ {[%clk
0:00:40.1]} 37... Kf7 {[%clk 0:00:30.8]} 38. Re4 {[%clk 0:00:38.6]} 38... Ra3
{[%clk 0:00:30.9]} 39. Re2 {[%clk 0:00:38]} 39... Kf6 {[%clk 0:00:30.9]} 40. Rc2
{[%clk 0:00:37.6]} 40... Ra4 {[%clk 0:00:26.7]} 41. h4 {[%clk 0:00:37.3]} 41...
Kg6 {[%clk 0:00:25.6]} 42. h5+ {[%clk 0:00:37.3]} 42... Kh6 {[%clk 0:00:23.5]}
43. Rc6+ {[%clk 0:00:37.1]} 43... Kh7 {[%clk 0:00:22.9]} 44. Rc2 {[%clk
0:00:30.9]} 44... Kh6 {[%clk 0:00:22.8]} 45. Rf2 {[%clk 0:00:30]} 45... Ra5
{[%clk 0:00:20.2]} 46. Rh2 {[%clk 0:00:24.8]} 46... Ra4 {[%clk 0:00:19.7]} 47.
Rc2 {[%clk 0:00:23.4]} 47... Kh7 {[%clk 0:00:18.2]} 48. Kg5 {[%clk 0:00:22.5]}
48... Ra3 {[%clk 0:00:13.7]} 49. Rc7+ {[%clk 0:00:18.2]} 49... Kg8 {[%clk
0:00:13.6]} 50. Rc2 {[%clk 0:00:15.2]} 50... Ra6 {[%clk 0:00:12.9]} 51. f5
{[%clk 0:00:14.5]} 51... Kh7 {[%clk 0:00:12.9]} 52. Rc7+ {[%clk 0:00:14.1]}
52... Kg8 {[%clk 0:00:13.1]} 53. Rc2 {[%clk 0:00:12.8]} 53... Kh7 {[%clk
0:00:12.5]} 54. Rg2 {[%clk 0:00:12.6]} 54... Kg7 {[%clk 0:00:11.8]} 55. Rb2
{[%clk 0:00:10.5]} 55... Kh7 {[%clk 0:00:11.8]} 56. Rb7+ {[%clk 0:00:10.1]}
56... Kg8 {[%clk 0:00:12.2]} 57. f6 {[%clk 0:00:10.3]} 57... Rxa2 {[%clk
0:00:09.6]} 58. Kg6 {[%clk 0:00:10.2]} 58... Rg2+ {[%clk 0:00:09.1]} 59. Kf5
{[%clk 0:00:10.6]} 59... Rf2+ {[%clk 0:00:08.8]} 60. Ke5 {[%clk 0:00:10.9]}
60... Re2+ {[%clk 0:00:09]} 61. Kd5 {[%clk 0:00:11]} 61... Rf2 {[%clk
0:00:08.9]} 62. Rg7+ {[%clk 0:00:08.3]} 62... Kh8 {[%clk 0:00:08]} 63. Ke6
{[%clk 0:00:07.4]} 63... Re2+ {[%clk 0:00:08]} 64. Kf7 {[%clk 0:00:07.6]} 64...
Rh2 {[%clk 0:00:05.4]} 65. Rg5 {[%clk 0:00:07.6]} 65... a5 {[%clk 0:00:04.4]}
66. Kg6 {[%clk 0:00:07.9]} 66... Rb2 {[%clk 0:00:03.5]} 67. Rf5 {[%clk
0:00:05.4]} 67... Rg2+ {[%clk 0:00:03.5]} 68. Rg5 {[%clk 0:00:05.3]} 68... Rb2
{[%clk 0:00:03]} 69. Rxa5 {[%clk 0:00:04.9]} 69... Rg2+ {[%clk 0:00:03.1]} 70.
Kh6 {[%clk 0:00:04.9]} 70... Rg8 {[%clk 0:00:02.7]} 71. Ra7 {[%clk 0:00:01.9]}
71... Rf8 {[%clk 0:00:02.7]} 72. Rh7+ {[%clk 0:00:01.7]} 72... Kg8 {[%clk
0:00:02.3]} 73. Rg7+ {[%clk 0:00:02.6]} 73... Kh8 {[%clk 0:00:02.5]} 74. Rg6
{[%clk 0:00:03.5]} 74... Rf7 {[%clk 0:00:02]} 75. Kg5 {[%clk 0:00:03.8]} 75...
Kh7 {[%clk 0:00:02.6]} 76. Kf5 {[%clk 0:00:03]} 76... Kh8 {[%clk 0:00:03.1]} 77.
Ke6 {[%clk 0:00:03.4]} 77... Ra7 {[%clk 0:00:02.7]} 78. f7 {[%clk 0:00:03.8]}
78... Ra6+ {[%clk 0:00:02.3]} 79. Ke7 {[%clk 0:00:04.1]} 79... Ra7+ {[%clk
0:00:02.5]} 80. Kf6 {[%clk 0:00:04.3]} 80... Ra6+ {[%clk 0:00:02.5]} 81. Kg5
{[%clk 0:00:04.8]} 81... Rxg6+ {[%clk 0:00:02.2]} 82. hxg6 {[%clk 0:00:03.7]}
82... Kg7 {[%clk 0:00:02.7]} 83. Kf5 {[%clk 0:00:04.2]} 83... Kf8 {[%clk
0:00:01.8]} 84. Ke6 {[%clk 0:00:04.3]} 84... Kg7 {[%clk 0:00:02.7]} 85. Ke7
{[%clk 0:00:04.5]} 85... Kxg6 {[%clk 0:00:03.6]} 86. f8=Q {[%clk 0:00:04.5]}
86... Kg5 {[%clk 0:00:04.5]} 87. Qf3 {[%clk 0:00:04.5]} 87... Kh4 {[%clk
0:00:04.5]} 88. Qg2 {[%clk 0:00:04.5]} 88... Kh5 {[%clk 0:00:04]} 89. Kf6 {[%clk
0:00:02.2]} 89... Kh4 {[%clk 0:00:04.9]} 90. Kf5 {[%clk 0:00:02.1]} 90... Kh5
{[%clk 0:00:05.8]} 91. Qh3# {[%clk 0:00:01.5]} 1-0

[Event "*** SCC Grand Prix: Titled Tuesday Blitz"]
[Site "Chess.com"]
[Date "2020.07.07"]
[Round "3"]
[White "Anton_Demchenko"]
[Black "ZAbdumalik"]
[Result "1/2-1/2"]
[WhiteElo "2866"]
[BlackElo "2588"]
[TimeControl "180+1"]
[EndTime "10:31:54 PDT"]
[Termination "Game drawn - insufficient material"]

1. d4 {[%clk 0:03:00.9]} 1... Nf6 {[%clk 0:02:59.6]} 2. Nf3 {[%clk 0:03:01.6]}
2... g6 {[%clk 0:02:59.6]} 3. Bf4 {[%clk 0:03:01.9]} 3... Bg7 {[%clk 0:02:59.2]}
4. c3 {[%clk 0:03:02.5]} 4... d6 {[%clk 0:02:59.4]} 5. Nbd2 {[%clk 0:03:02.9]}
5... c5 {[%clk 0:02:59.7]} 6. dxc5 {[%clk 0:03:02.3]} 6... dxc5 {[%clk
0:02:59.7]} 7. e4 {[%clk 0:03:02.7]} 7... O-O {[%clk 0:02:58.9]} 8. h3 {[%clk
0:03:03.1]} 8... Nc6 {[%clk 0:02:56.3]} 9. Qc2 {[%clk 0:03:03.5]} 9... b6 {[%clk
0:02:52.8]} 10. Be2 {[%clk 0:03:02.3]} 10... Bb7 {[%clk 0:02:52.8]} 11. Rd1
{[%clk 0:03:02.4]} 11... Qc8 {[%clk 0:02:50.7]} 12. O-O {[%clk 0:03:02.7]} 12...
Rd8 {[%clk 0:02:43.1]} 13. Rfe1 {[%clk 0:03:02.5]} 13... h6 {[%clk 0:02:40.4]}
14. Bh2 {[%clk 0:03:02.4]} 14... Ba6 {[%clk 0:02:32.9]} 15. Bxa6 {[%clk
0:02:56]} 15... Qxa6 {[%clk 0:02:32.7]} 16. e5 {[%clk 0:02:56.7]} 16... Nh7
{[%clk 0:02:17.1]} 17. e6 {[%clk 0:02:56.6]} 17... f5 {[%clk 0:02:17.2]} 18. Bc7
{[%clk 0:01:17.7]} 18... Rdc8 {[%clk 0:02:04.1]} 19. Be5 {[%clk 0:01:12.9]}
19... Nxe5 {[%clk 0:02:01.6]} 20. Nxe5 {[%clk 0:01:13.3]} 20... Nf8 {[%clk
0:02:02.3]} 21. Ndf3 {[%clk 0:01:05.6]} 21... b5 {[%clk 0:01:58.1]} 22. Nxg6
{[%clk 0:00:58.7]} 22... Nxg6 {[%clk 0:01:51.6]} 23. Qxf5 {[%clk 0:00:58.7]}
23... Nh8 {[%clk 0:01:20.3]} 24. Rd7 {[%clk 0:00:58.5]} 24... Rf8 {[%clk
0:01:16.1]} 25. Qg4 {[%clk 0:00:58.7]} 25... Rae8 {[%clk 0:01:14.1]} 26. a3
{[%clk 0:00:39.6]} 26... Qa4 {[%clk 0:01:06.4]} 27. Re4 {[%clk 0:00:37.2]} 27...
Qc2 {[%clk 0:01:03.6]} 28. Rd2 {[%clk 0:00:26.1]} 28... Qb1+ {[%clk 0:01:00.9]}
29. Re1 {[%clk 0:00:16.8]} 29... Qf5 {[%clk 0:00:59]} 30. Rd7 {[%clk 0:00:14.8]}
30... Qxg4 {[%clk 0:00:55.5]} 31. hxg4 {[%clk 0:00:15.7]} 31... a5 {[%clk
0:00:54.3]} 32. Nh4 {[%clk 0:00:15.3]} 32... Bf6 {[%clk 0:00:50.6]} 33. Nf5
{[%clk 0:00:15]} 33... Kh7 {[%clk 0:00:48.6]} 34. f3 {[%clk 0:00:13.1]} 34...
Ng6 {[%clk 0:00:48.2]} 35. g3 {[%clk 0:00:12.4]} 35... Ne5 {[%clk 0:00:47]} 36.
Rxe5 {[%clk 0:00:12.6]} 36... Bxe5 {[%clk 0:00:47.1]} 37. Nxe7 {[%clk
0:00:13.5]} 37... Rxf3 {[%clk 0:00:41.9]} 38. Nf5+ {[%clk 0:00:09.4]} 38... Kh8
{[%clk 0:00:41]} 39. e7 {[%clk 0:00:09.2]} 39... Bf6 {[%clk 0:00:36.4]} 40. Kg2
{[%clk 0:00:07.7]} 40... Rxf5 {[%clk 0:00:34.6]} 41. gxf5 {[%clk 0:00:08.6]}
41... Rxe7 {[%clk 0:00:34.9]} 42. Rd5 {[%clk 0:00:07.7]} 42... Rc7 {[%clk
0:00:34.6]} 43. Kf3 {[%clk 0:00:06.6]} 43... h5 {[%clk 0:00:33.7]} 44. Kf4
{[%clk 0:00:05]} 44... Kg7 {[%clk 0:00:33.4]} 45. Rd6 {[%clk 0:00:04]} 45... b4
{[%clk 0:00:27.3]} 46. cxb4 {[%clk 0:00:03.6]} 46... axb4 {[%clk 0:00:27.6]} 47.
axb4 {[%clk 0:00:04.1]} 47... cxb4 {[%clk 0:00:27.7]} 48. b3 {[%clk 0:00:04.7]}
48... Kf7 {[%clk 0:00:25.5]} 49. Rb6 {[%clk 0:00:04.5]} 49... Be7 {[%clk
0:00:20.7]} 50. Ke5 {[%clk 0:00:04]} 50... Rc3 {[%clk 0:00:20.5]} 51. Rb7 {[%clk
0:00:02.8]} 51... Rc5+ {[%clk 0:00:20.4]} 52. Kf4 {[%clk 0:00:03]} 52... Rc3
{[%clk 0:00:20.8]} 53. Ke5 {[%clk 0:00:02.9]} 53... Rxb3 {[%clk 0:00:21.2]} 54.
f6 {[%clk 0:00:03.1]} 54... Re3+ {[%clk 0:00:21.1]} 55. Kf4 {[%clk 0:00:03.1]}
55... Re6 {[%clk 0:00:21.1]} 56. fxe7 {[%clk 0:00:03.4]} 56... Rxe7 {[%clk
0:00:20.9]} 57. Rxb4 {[%clk 0:00:03.7]} 57... Kg7 {[%clk 0:00:19.3]} 58. Rb5
{[%clk 0:00:03.7]} 58... Kg6 {[%clk 0:00:17.4]} 59. Rb6+ {[%clk 0:00:04.2]}
59... Kg7 {[%clk 0:00:17.8]} 60. Kg5 {[%clk 0:00:04.8]} 60... Re5+ {[%clk
0:00:17.8]} 61. Kh4 {[%clk 0:00:04.3]} 61... Rd5 {[%clk 0:00:18.1]} 62. Rc6
{[%clk 0:00:04.6]} 62... Re5 {[%clk 0:00:18.2]} 63. Ra6 {[%clk 0:00:04.8]} 63...
Rb5 {[%clk 0:00:18.5]} 64. Re6 {[%clk 0:00:04.7]} 64... Rc5 {[%clk 0:00:18.6]}
65. Rd6 {[%clk 0:00:05.2]} 65... Rb5 {[%clk 0:00:18.9]} 66. Rd4 {[%clk
0:00:05.3]} 66... Kg6 {[%clk 0:00:18.3]} 67. Rd6+ {[%clk 0:00:05.1]} 67... Kg7
{[%clk 0:00:18.6]} 68. Re6 {[%clk 0:00:05.7]} 68... Ra5 {[%clk 0:00:18.4]} 69.
Re3 {[%clk 0:00:05.7]} 69... Kg6 {[%clk 0:00:18.1]} 70. Re6+ {[%clk 0:00:05.5]}
70... Kg7 {[%clk 0:00:18.5]} 71. Rb6 {[%clk 0:00:05.6]} 71... Rc5 {[%clk
0:00:18.6]} 72. Rb8 {[%clk 0:00:05.7]} 72... Kg6 {[%clk 0:00:18.1]} 73. Rg8+
{[%clk 0:00:05.9]} 73... Kh6 {[%clk 0:00:18.4]} 74. Kh3 {[%clk 0:00:04]} 74...
Ra5 {[%clk 0:00:17.6]} 75. Rh8+ {[%clk 0:00:04.3]} 75... Kg5 {[%clk 0:00:16.9]}
76. Rb8 {[%clk 0:00:05.1]} 76... Ra4 {[%clk 0:00:15.9]} 77. Rb6 {[%clk
0:00:04.6]} 77... Kf5 {[%clk 0:00:15.5]} 78. Rb5+ {[%clk 0:00:04.7]} 78... Kg6
{[%clk 0:00:15.6]} 79. Rc5 {[%clk 0:00:04.8]} 79... Rb4 {[%clk 0:00:14.2]} 80.
Rd5 {[%clk 0:00:05]} 80... Ra4 {[%clk 0:00:14.4]} 81. Rd3 {[%clk 0:00:05.1]}
81... Kg5 {[%clk 0:00:13.9]} 82. Rd5+ {[%clk 0:00:05]} 82... Kg6 {[%clk
0:00:14.2]} 83. Re5 {[%clk 0:00:05.6]} 83... Rb4 {[%clk 0:00:14]} 84. Kg2 {[%clk
0:00:05.5]} 84... Ra4 {[%clk 0:00:13.8]} 85. Kf3 {[%clk 0:00:05.9]} 85... Rb4
{[%clk 0:00:13.8]} 86. Rd5 {[%clk 0:00:05.3]} 86... Ra4 {[%clk 0:00:13.9]} 87.
Rc5 {[%clk 0:00:05.6]} 87... Rb4 {[%clk 0:00:13.1]} 88. Rc8 {[%clk 0:00:06]}
88... Ra4 {[%clk 0:00:12.4]} 89. Rg8+ {[%clk 0:00:06.2]} 89... Kf5 {[%clk
0:00:11.3]} 90. Rh8 {[%clk 0:00:05.7]} 90... Kg5 {[%clk 0:00:11.1]} 91. Kg2
{[%clk 0:00:05.7]} 91... Ra2+ {[%clk 0:00:10.4]} 92. Kh3 {[%clk 0:00:06.1]}
92... Ra4 {[%clk 0:00:11.2]} 93. Rg8+ {[%clk 0:00:06.3]} 93... Kh6 {[%clk
0:00:11.5]} 94. Rf8 {[%clk 0:00:06.6]} 94... Kg6 {[%clk 0:00:11.5]} 95. Rf4
{[%clk 0:00:05.5]} 95... Rxf4 {[%clk 0:00:10.6]} 96. gxf4 {[%clk 0:00:06.4]}
96... Kf5 {[%clk 0:00:11.1]} 97. Kh4 {[%clk 0:00:07.3]} 97... Kxf4 {[%clk
0:00:11.3]} 98. Kxh5 {[%clk 0:00:08.2]} 1/2-1/2